bitfinex/quotes_BTCUSD_20251226
["timestamp","ask_amount","ask_price","bid_price","bid_amount"]
[1766758103019,0.01123406,89015.0,89007.0,0.01123507]
[1766758103280,0.51232897,89016.0,89008.0,0.01123494]
[1766758103571,0.01123406,89015.0,89007.0,0.01123507]
[1766758103935,0.45615895,89016.0,89008.0,0.01123494]
[1766758104371,0.01123418,89014.0,89006.0,0.01123519]
[1766758104977,0.45615895,89016.0,89006.0,0.01123519]
[1766758105343,0.01123406,89015.0,89007.0,0.01123507]
[1766758105541,0.01123418,89014.0,89006.0,0.01123519]
[1766758105744,0.01123406,89015.0,89007.0,0.01123507]
[1766758106767,0.45615895,89016.0,89008.0,0.01123494]
[1766758107201,0.01123406,89015.0,89006.0,0.01123519]
[1766758108200,0.01123418,89014.0,89006.0,0.01123519]
[1766758108379,0.01123406,89015.0,89007.0,0.01123507]
[1766758108770,0.45615895,89016.0,89007.0,0.01123507]
[1766758108966,0.51232893,89016.0,89006.0,0.01123519]
[1766758109171,0.01123418,89014.0,89004.0,0.01123545]
[1766758109407,0.01123406,89015.0,89005.0,0.05617661]
[1766758109629,0.45615895,89016.0,89008.0,0.01123494]
[1766758109825,0.45615895,89016.0,89006.0,0.01123519]
[1766758109826,0.01123418,89014.0,89006.0,0.01123519]
[1766758110036,0.01123406,89015.0,89005.0,0.01123532]
[1766758110326,0.01123406,89015.0,89006.0,0.01123519]
[1766758110528,0.01123406,89015.0,89007.0,0.01123507]
[1766758110730,0.01123418,89014.0,89006.0,0.01123519]
[1766758111035,0.01123418,89014.0,89004.0,0.06741236]
[1766758111231,0.01123406,89015.0,89004.0,0.06741236]
[1766758111529,0.01123406,89015.0,89006.0,0.01123519]
[1766758112779,0.01124,89016.0,89010.0,0.01123469]
[1766758112984,0.01348693,89017.0,89010.0,0.01123469]
[1766758113203,0.01348693,89017.0,89011.0,0.01123456]
[1766758113438,0.02427735,89022.0,89011.0,0.05617242]
[1766758113593,0.04028893,89035.0,89010.0,0.01123469]
[1766758113594,0.03371799,89026.0,89022.0,0.00055]
[1766758113993,0.01124,89027.0,89022.0,0.00055]
[1766758114184,0.02247254,89027.0,89018.0,0.01123368]
[1766758114384,0.02247254,89027.0,89019.0,0.01123355]
[1766758115211,0.01124,89027.0,89020.0,0.01123343]
[1766758115415,0.01124,89027.0,89019.0,0.01123355]
[1766758115416,0.02247254,89027.0,89019.0,0.01123355]
[1766758115616,0.02247254,89027.0,89020.0,0.01123343]
[1766758115840,0.02247254,89027.0,89019.0,0.01123355]
[1766758116295,0.01124,89027.0,89020.0,0.01123343]
[1766758116643,0.02247254,89027.0,89019.0,0.01123355]
[1766758117533,0.01123267,89026.0,89018.0,0.01123368]
[1766758118128,0.02247254,89027.0,89019.0,0.01123355]
[1766758118329,0.01124,89027.0,89020.0,0.01123343]
[1766758118534,0.01124,89027.0,89021.0,0.0112333]
[1766758120429,0.01124,89027.0,89022.0,0.01123317]
[1766758120918,0.01124,89027.0,89021.0,0.0112333]
[1766758121113,0.01124,89027.0,89020.0,0.01123343]
[1766758121287,0.01124,89027.0,89019.0,0.01123355]
[1766758121486,0.02247254,89027.0,89019.0,0.01123355]
[1766758122123,0.01069,89027.0,89021.0,0.0112333]
[1766758122375,0.01069,89027.0,89018.0,0.01123368]
[1766758122570,0.01069,89027.0,89006.0,0.01123519]
[1766758122571,0.000549,89018.0,89006.0,0.01123519]
[1766758122920,0.01069,89027.0,89006.0,0.01123519]
[1766758122921,0.02472073,89017.0,89008.0,0.06740925]
[1766758123268,0.02472073,89017.0,89008.0,0.01123494]
[1766758123525,0.02472073,89017.0,89009.0,0.01123481]
[1766758123724,0.02472073,89017.0,89008.0,0.01123494]
[1766758123880,0.01123393,89016.0,89008.0,0.01123494]
[1766758124587,0.01123406,89015.0,89008.0,0.01123494]
[1766758124788,0.01123393,89016.0,89008.0,0.01123494]
[1766758125578,0.01123406,89015.0,89007.0,0.07865005]
[1766758125775,0.01123393,89016.0,89008.0,0.01123494]
[1766758126807,0.02472073,89017.0,89009.0,0.01123481]
[1766758127198,0.03030268,89037.0,89007.0,0.07865005]
[1766758127199,0.01123305,89023.0,89013.0,0.01123431]
[1766758127439,0.01123305,89023.0,89007.0,0.44492502]
[1766758127440,0.0112333,89021.0,89012.0,0.01123444]
[1766758127649,0.06739869,89023.0,89012.0,0.01123444]
[1766758127650,0.06739869,89023.0,89014.0,0.01123418]
[1766758127992,0.01123305,89023.0,89014.0,0.01123418]
[1766758128196,0.01123317,89022.0,89015.0,0.01123406]
[1766758128474,0.01123305,89023.0,89014.0,0.01123418]
[1766758128679,0.00015738,89019.0,89015.0,0.01123406]
[1766758129802,0.00015738,89019.0,89016.0,0.01123393]
[1766758130163,0.00015738,89019.0,89015.0,0.01123406]
[1766758130468,0.00015738,89019.0,89016.0,0.01123393]
[1766758130794,0.00015738,89019.0,89014.0,0.01123418]
[1766758131164,0.00015738,89019.0,89015.0,0.01123406]
[1766758131903,0.00015738,89019.0,89013.0,0.01123431]
[1766758132201,0.00015738,89019.0,89014.0,0.01123418]
[1766758132353,0.00015738,89019.0,89015.0,0.01123406]
[1766758132554,0.00015738,89019.0,89012.0,0.01123444]
[1766758132797,0.00015738,89019.0,89014.0,0.01123418]
[1766758133381,0.00015738,89019.0,89013.0,0.01123431]
[1766758133568,0.00015738,89019.0,89015.0,0.01123406]
[1766758133767,0.00015738,89019.0,89014.0,0.01123418]
[1766758134363,0.01123317,89022.0,89013.0,0.01123431]
[1766758135622,0.01123317,89022.0,89014.0,0.01123418]
[1766758136727,0.01123317,89022.0,89015.0,0.01123406]
[1766758136930,0.000549,89015.0,89011.0,0.06740706]
[1766758137128,0.000549,89015.0,89012.0,0.06740634]
[1766758137555,0.0112333,89021.0,89013.0,0.01123431]
[1766758138513,0.0112333,89021.0,89014.0,0.01123418]
[1766758138700,0.01123317,89022.0,89014.0,0.01123418]
[1766758138920,0.01123368,89028.0,89020.0,0.01123343]
[1766758139139,0.01123368,89028.0,89021.0,0.0112333]
[1766758139354,0.01123368,89028.0,89022.0,0.01123317]
[1766758139513,0.01123191,89032.0,89022.0,0.01123317]
[1766758139747,0.01124,89030.0,89023.0,0.01123305]
[1766758139937,0.01124,89030.0,89022.0,0.01123317]
[1766758140170,0.01124,89030.0,89023.0,0.01123305]
[1766758140489,0.01124,89030.0,89024.0,0.01123292]
[1766758140633,0.01124,89030.0,89020.0,0.44491845]
[1766758140835,0.01123279,89025.0,89012.0,0.01123444]
[1766758141048,0.0112333,89021.0,89009.0,0.01123481]
[1766758141254,0.01123368,89018.0,89010.0,0.44491971]
[1766758141455,0.01123355,89019.0,89011.0,0.01123456]
[1766758141676,0.01123368,89018.0,89010.0,0.43368502]
[1766758141885,0.01123355,89019.0,89011.0,0.01123456]
[1766758143231,0.01123355,89019.0,89006.0,0.01123519]
[1766758143232,0.01123393,89016.0,89006.0,0.01123519]
[1766758143398,0.01124,89030.0,89000.0,4.439e-05]
[1766758143399,0.01123481,89009.0,89000.0,4.439e-05]
[1766758143597,0.2246836,89015.0,89000.0,4.439e-05]
[1766758143598,0.01123444,89012.0,89003.0,0.01123557]
[1766758143840,0.01123418,89014.0,89006.0,0.01123519]
[1766758144329,0.01123406,89015.0,89007.0,0.01123507]
[1766758144968,0.01123406,89015.0,89006.0,0.01123519]
[1766758145388,0.01123418,89014.0,89006.0,0.01123519]
[1766758145573,0.01123406,89015.0,89007.0,0.01123507]
[1766758146220,0.01123406,89015.0,89005.0,0.01123532]
[1766758146221,0.01123418,89014.0,89005.0,0.01123532]
[1766758146518,0.01123418,89014.0,89006.0,0.01123519]
[1766758147124,0.01123406,89015.0,89007.0,0.01123507]
[1766758147484,0.01123406,89015.0,89006.0,0.01123519]
[1766758147994,0.06740411,89016.0,89008.0,0.01123494]
[1766758148410,0.01123406,89015.0,89007.0,0.01123507]
[1766758149009,0.06740411,89016.0,89007.0,0.01123507]
[1766758149010,0.06740411,89016.0,89008.0,0.01123494]
[1766758149415,0.01123406,89015.0,89007.0,0.01123507]
[1766758150729,0.01123406,89015.0,89008.0,0.01123494]
[1766758150925,0.01123418,89014.0,89006.0,0.01123519]
[1766758151251,0.01123431,89013.0,89004.0,0.06741233]
[1766758151455,0.01123431,89013.0,89005.0,0.01123532]
[1766758151862,0.01123418,89014.0,89006.0,0.01123519]
[1766758152061,0.01123393,89016.0,89006.0,0.01123519]
[1766758152474,0.01123418,89014.0,89005.0,0.06741136]
[1766758152622,0.01123418,89014.0,89006.0,0.01123519]
[1766758152824,0.01123406,89015.0,89007.0,0.01123507]
[1766758153059,0.01123418,89014.0,89006.0,0.01123519]
[1766758153769,0.01123418,89014.0,89005.0,0.06741136]
[1766758153920,0.02472073,89017.0,89008.0,0.01123494]
[1766758154379,0.01123406,89015.0,89007.0,0.01123507]
[1766758154774,0.01123418,89014.0,89006.0,0.01123519]
[1766758154984,0.01123393,89016.0,89006.0,0.01123519]
[1766758155202,0.01123393,89016.0,89008.0,0.01123494]
[1766758155351,0.01123406,89015.0,89006.0,0.01123519]
[1766758155552,0.01123406,89015.0,89007.0,0.01123507]
[1766758156614,0.01123406,89015.0,89008.0,0.01123494]
[1766758157010,0.01123393,89016.0,89008.0,0.01123494]
[1766758157219,0.01123418,89014.0,89006.0,0.01123519]
[1766758158278,0.01123393,89016.0,89007.0,0.01123507]
[1766758158651,0.01123406,89015.0,89007.0,0.01123507]
[1766758158865,0.01123557,89003.0,88990.0,0.01123721]
[1766758159063,0.01123557,89003.0,88988.0,0.01123747]
[1766758159064,0.05617885,89002.0,88988.0,0.01123747]
[1766758159263,0.05617908,89002.0,88996.0,0.01124]
[1766758159407,0.05617884,89002.0,88996.0,0.01124]
[1766758159916,0.05617884,89002.0,89000.0,3.9e-07]
[1766758160123,0.06741396,89003.0,89000.0,3.9e-07]
[1766758160319,0.05617887,89002.0,89000.0,3.9e-07]
[1766758161885,0.05617887,89002.0,88988.0,0.06742426]
[1766758161886,0.01123633,88997.0,88988.0,0.06742426]
[1766758162086,0.0112362,88998.0,88988.0,0.01159905]
[1766758162288,0.01123633,88997.0,88989.0,0.01123734]
[1766758162516,0.01123633,88997.0,88988.0,0.01159905]
[1766758162517,0.0112362,88998.0,88988.0,0.02283652]
[1766758162714,0.0112362,88998.0,88989.0,0.01123734]
[1766758162958,0.0112362,88998.0,88990.0,0.01123721]
[1766758163657,0.01123633,88997.0,88989.0,0.01123734]
[1766758163884,0.0112362,88998.0,88990.0,0.01123721]
[1766758164126,0.01123633,88997.0,88989.0,0.01123734]
[1766758164557,0.01123646,88996.0,88988.0,0.02283652]
[1766758164808,0.01123696,88992.0,88988.0,0.00035905]
[1766758165071,0.22472055,89000.0,88976.0,0.01123898]
[1766758165072,0.05654668,88988.0,88976.0,0.01123898]
[1766758165264,0.01123759,88987.0,88982.0,0.01124]
[1766758165504,0.01123772,88986.0,88982.0,0.01124]
[1766758165697,0.01130605,88988.0,88982.0,0.01124]
[1766758165896,6.858e-05,88988.0,88982.0,0.01124]
[1766758166714,0.01130605,88988.0,88982.0,0.01124]
[1766758167142,0.01123759,88987.0,88982.0,0.01124]
[1766758167701,0.01123759,88987.0,88978.0,0.06743198]
[1766758167702,0.01123772,88986.0,88980.0,0.01124]
[1766758168847,0.01123759,88987.0,88980.0,0.01124]
[1766758168976,0.01123772,88986.0,88980.0,0.01124]
[1766758169559,0.01123759,88987.0,88980.0,0.01124]
[1766758169761,0.01123772,88986.0,88980.0,0.01124]
[1766758169960,0.01123784,88985.0,88980.0,0.00505612]
[1766758170231,0.01123784,88985.0,88972.0,0.01123949]
[1766758170232,0.01123772,88986.0,88977.0,0.01124]
[1766758170233,0.05619303,88979.0,88977.0,0.01124]
[1766758170425,0.01123848,88980.0,88973.0,0.01124]
[1766758170629,0.0112386,88979.0,88973.0,0.01124]
[1766758170838,0.01123835,88981.0,88973.0,0.01124]
[1766758171038,0.0674296,88982.0,88974.0,0.01123923]
[1766758171259,0.01123822,88982.0,88973.0,0.02247936]
[1766758171467,0.06742823,88984.0,88974.0,0.01123923]
[1766758171468,0.0112381,88983.0,88974.0,0.01123923]
[1766758171700,0.0112381,88983.0,88975.0,0.01123911]
[1766758172065,0.0112381,88983.0,88974.0,0.01123923]
[1766758172273,0.01123822,88982.0,88974.0,0.01123923]
[1766758172488,0.01123797,88984.0,88975.0,0.01123911]
[1766758173133,0.0112381,88983.0,88975.0,0.01123911]
[1766758173654,0.0112381,88983.0,88973.0,0.07867576]
[1766758173655,0.01123835,88981.0,88973.0,0.07867576]
[1766758173784,0.01123822,88982.0,88974.0,0.01123923]
[1766758174208,0.01123835,88981.0,88973.0,0.07867576]
[1766758174533,0.01123835,88981.0,88974.0,0.01123923]
[1766758174738,0.01123835,88981.0,88973.0,0.07867576]
[1766758174940,0.0112381,88983.0,88981.0,4.3e-05]
[1766758175528,0.06967556,88986.0,88975.0,0.05619552]
[1766758175810,0.06742746,88985.0,88974.0,0.01123923]
[1766758176061,0.01123784,88985.0,88977.0,0.01123885]
[1766758176765,0.01123797,88984.0,88976.0,0.01123898]
[1766758176961,0.01123784,88985.0,88977.0,0.01123885]
[1766758177118,0.01123797,88984.0,88976.0,0.01123898]
[1766758177522,0.01123822,88982.0,88973.0,0.01124]
[1766758177723,0.01123822,88982.0,88973.0,0.01123936]
[1766758178319,0.01123848,88980.0,88972.0,0.07867635]
[1766758178517,0.01123835,88981.0,88973.0,0.01123936]
[1766758179547,0.01123848,88980.0,88972.0,0.01124]
[1766758179743,0.01123848,88980.0,88972.0,0.02247949]
[1766758179943,0.01123835,88981.0,88973.0,0.01123936]
[1766758180346,0.0112386,88979.0,88972.0,0.01124]
[1766758180557,0.01123848,88980.0,88972.0,0.02247949]
[1766758180750,0.01123885,88977.0,88972.0,0.01124]
[1766758180936,0.01123987,88969.0,88958.0,0.01124125]
[1766758181133,0.000506,88972.0,88951.0,0.01124214]
[1766758181134,0.01124075,88962.0,88951.0,0.01124214]
[1766758181366,0.22479083,88972.0,88956.0,0.01124151]
[1766758181367,0.0674419,88966.0,88956.0,0.01124151]
[1766758181521,0.01124037,88965.0,88957.0,0.01124138]
[1766758181715,0.01124024,88966.0,88957.0,0.01124138]
[1766758181971,0.01123999,88968.0,88957.0,0.01124138]
[1766758181972,0.01123999,88968.0,88958.0,0.02248125]
[1766758182166,0.01124024,88966.0,88958.0,0.02248125]
[1766758183183,0.01124037,88965.0,88958.0,0.01124]
[1766758183325,0.0112405,88964.0,88958.0,0.01124]
[1766758183536,0.01124062,88963.0,88956.0,0.01124]
[1766758183831,0.01124012,88967.0,88958.0,0.01124125]
[1766758184234,0.06744136,88967.0,88957.0,0.01124138]
[1766758184434,0.01124024,88966.0,88958.0,0.01124125]
[1766758184678,0.01124037,88965.0,88957.0,0.01124138]
[1766758185046,0.01124024,88966.0,88957.0,0.01124138]
[1766758185331,0.0112405,88964.0,88956.0,0.01124151]
[1766758185501,0.0112405,88964.0,88956.0,0.02248151]
[1766758185885,0.0112405,88964.0,88951.0,0.06745232]
[1766758185886,0.000549,88956.0,88945.0,0.0114429]
[1766758186089,0.000549,88956.0,88950.0,0.01124227]
[1766758186278,0.000549,88956.0,88951.0,0.01124214]
[1766758186474,0.01124113,88959.0,88951.0,0.01124214]
[1766758186976,0.01124113,88959.0,88951.0,0.00010788]
[1766758186977,0.01124151,88956.0,88951.0,0.00010788]
[1766758187426,0.01124113,88959.0,88951.0,0.00010788]
[1766758187724,0.06744469,88961.0,88951.0,0.01135002]
[1766758187904,0.01124138,88957.0,88951.0,0.00010788]
[1766758188091,0.01124125,88958.0,88951.0,0.00010788]
[1766758188492,0.01124113,88959.0,88951.0,0.01135002]
[1766758188695,0.01124125,88958.0,88951.0,0.00010788]
[1766758189129,0.01124138,88957.0,88951.0,0.00010788]
[1766758189344,0.01124163,88955.0,88951.0,0.00010788]
[1766758189661,0.05621,88953.0,88951.0,8.8e-07]
[1766758190649,0.01124252,88948.0,88945.0,0.0002]
[1766758190849,0.0112429,88945.0,88941.0,0.0002]
[1766758191054,0.01124277,88946.0,88941.0,0.0002]
[1766758191308,0.01124328,88942.0,88939.0,0.0002]
[1766758191470,0.01124328,88942.0,88924.0,0.01144]
[1766758191471,0.01124454,88932.0,88924.0,0.01144]
[1766758191643,0.01124441,88933.0,88929.0,0.00024448]
[1766758191853,0.06746703,88933.0,88929.0,0.00024448]
[1766758192054,0.01124441,88933.0,88929.0,0.00024448]
[1766758192346,0.01124416,88935.0,88929.0,0.00024448]
[1766758192547,0.01124404,88936.0,88929.0,0.00024448]
[1766758192750,0.01124416,88935.0,88929.0,0.00024448]
[1766758192953,0.01124404,88936.0,88929.0,0.00024448]
[1766758193158,0.01124391,88937.0,88929.0,0.0114894]
[1766758193364,0.01124,88939.0,88937.0,0.001057]
[1766758193875,0.02248366,88939.0,88931.0,0.01124467]
[1766758194220,0.01124378,88938.0,88930.0,0.01124479]
[1766758194661,0.01124,88939.0,88930.0,0.06746878]
[1766758194919,0.01124,88939.0,88932.0,0.01124454]
[1766758195087,0.02248366,88939.0,88929.0,0.0114894]
[1766758195261,0.01124378,88938.0,88930.0,0.01124479]
[1766758195639,0.02248366,88939.0,88931.0,0.01124467]
[1766758195837,0.01124,88939.0,88932.0,0.01124454]
[1766758196275,0.01124,88939.0,88933.0,0.01124441]
[1766758196481,0.00305919,88939.0,88937.0,0.05621906]
[1766758196733,0.01124265,88947.0,88936.0,0.01124404]
[1766758196734,0.0112429,88945.0,88936.0,0.01124404]
[1766758196962,0.01348693,88943.0,88940.0,0.01124353]
[1766758197160,0.01293793,88943.0,88940.0,0.01124353]
[1766758197840,0.010733,88944.0,88940.0,0.06746073]
[1766758198030,0.06745088,88954.0,88937.0,0.01124391]
[1766758198031,0.01124,88946.0,88945.0,0.0112429]
[1766758198225,0.01124,88949.0,88942.0,0.06745969]
[1766758198649,0.01124,88949.0,88944.0,0.01124302]
[1766758199395,0.01124315,88943.0,88930.0,0.01124479]
[1766758199613,0.01348693,88935.0,88933.0,0.01124441]
[1766758199810,0.0674587,88944.0,88935.0,0.01124416]
[1766758199811,0.02473008,88943.0,88935.0,0.01124416]
[1766758200103,0.0112434,88941.0,88933.0,0.01124441]
[1766758200308,0.02473008,88943.0,88934.0,0.01124429]
[1766758200779,0.01348693,88943.0,88937.0,0.01124391]
[1766758202164,0.01124252,88948.0,88934.0,0.01124429]
[1766758202165,0.01124125,88958.0,88942.0,0.01124328]
[1766758202390,0.01128,88953.0,88949.0,0.01124239]
[1766758202761,0.05620546,88960.0,88940.0,0.43349682]
[1766758202762,0.01128,88960.0,88950.0,0.05621087]
[1766758202960,0.01128,88960.0,88953.0,0.01124189]
[1766758203103,0.06744199,88966.0,88950.0,0.43349682]
[1766758203315,0.05620086,88967.0,88950.0,0.43349682]
[1766758203316,0.02252012,88967.0,88958.0,0.01124125]
[1766758203547,0.02252012,88967.0,88959.0,0.01124113]
[1766758204490,0.02252012,88967.0,88957.0,0.44525321]
[1766758204491,0.01128,88967.0,88960.0,0.011241]
[1766758204852,0.01128,88967.0,88961.0,0.01124088]
[1766758205055,0.01128,88967.0,88960.0,0.011241]
[1766758205615,0.02252012,88967.0,88959.0,0.01124113]
[1766758206059,0.01128,88967.0,88960.0,0.011241]
[1766758206267,0.02252012,88967.0,88960.0,0.011241]
[1766758206641,0.000548,88960.0,88957.0,0.44525321]
[1766758206846,0.02252012,88967.0,88957.0,0.06744787]
[1766758207050,0.02252012,88967.0,88958.0,0.01124125]
[1766758207241,0.02252012,88967.0,88957.0,0.01124138]
[1766758207613,0.01124024,88966.0,88957.0,0.01124138]
[1766758208153,0.000548,88957.0,88956.0,0.43401183]
[1766758208344,0.000548,88957.0,88954.0,0.01124176]
[1766758208345,0.01124075,88962.0,88954.0,0.01124176]
[1766758208787,0.01124062,88963.0,88954.0,0.01124176]
[1766758208788,0.01124062,88963.0,88955.0,0.01124163]
[1766758208986,0.01124075,88962.0,88954.0,0.01124176]
[1766758209292,0.011241,88960.0,88952.0,0.44525384]
[1766758209504,0.01124088,88961.0,88952.0,0.43401183]
[1766758209664,0.06744577,88961.0,88952.0,0.43401183]
[1766758210262,0.01124113,88959.0,88952.0,0.43401183]
[1766758210646,0.01124138,88957.0,88952.0,0.43401183]
[1766758210852,0.01095112,88959.0,88952.0,0.43401183]
[1766758212268,0.01095112,88959.0,88951.0,0.01124214]
[1766758212828,0.01124088,88961.0,88952.0,0.01124201]
[1766758213040,0.01124088,88961.0,88953.0,0.01124189]
[1766758213961,0.01124062,88963.0,88955.0,0.01124163]
[1766758214094,0.01124075,88962.0,88953.0,0.44525372]
[1766758214298,0.01124088,88961.0,88953.0,0.44525372]
[1766758214496,0.01124088,88961.0,88953.0,0.43401183]
[1766758214702,0.011241,88960.0,88953.0,0.43401183]
[1766758215018,0.02472831,88957.0,88952.0,0.01128]
[1766758215331,0.02472831,88957.0,88950.0,0.43401183]
[1766758215332,0.08093564,88957.0,88950.0,0.01128]
[1766758215530,0.01124151,88956.0,88950.0,0.01128]
[1766758215731,0.02472831,88957.0,88950.0,0.01128]
[1766758215917,0.01124151,88956.0,88950.0,0.01128]
[1766758216500,0.000548,88950.0,88946.0,0.43401183]
[1766758216761,0.01348693,88957.0,88945.0,0.0112429]
[1766758216903,0.02472831,88957.0,88947.0,0.44525448]
[1766758217108,0.01348693,88957.0,88949.0,0.01124239]
[1766758217559,0.01348693,88957.0,88950.0,0.01124227]
[1766758218557,0.01348693,88957.0,88952.0,0.01124201]
[1766758218943,0.01348693,88957.0,88951.0,0.01124214]
[1766758219120,0.01348693,88957.0,88950.0,0.01124227]
[1766758219330,0.01348693,88957.0,88949.0,0.01124239]
[1766758221373,0.01348693,88957.0,88950.0,0.01124227]
[1766758221989,0.02472831,88957.0,88949.0,0.01124239]
[1766758222290,0.01348693,88957.0,88950.0,0.01124227]
[1766758222654,0.02472831,88957.0,88949.0,0.01124239]
[1766758223012,0.02472831,88957.0,88950.0,0.01124227]
[1766758224020,0.01124075,88962.0,88950.0,0.01124227]
[1766758224021,0.0225205,88964.0,88953.0,0.06745092]
[1766758224258,0.0225205,88964.0,88955.0,0.01124163]
[1766758224469,0.01128,88964.0,88957.0,0.01124138]
[1766758224676,0.01128,88964.0,88958.0,0.01124125]
[1766758224882,0.01128,88964.0,88957.0,0.01124138]
[1766758225097,0.01128,88964.0,88958.0,0.01124125]
[1766758225303,0.01124,88966.0,88961.0,0.01124088]
[1766758225504,0.01124,88966.0,88962.0,0.01124075]
[1766758225719,0.01124,88966.0,88961.0,0.01124088]
[1766758226118,0.01124,88966.0,88959.0,0.01124113]
[1766758226354,0.01124,88966.0,88960.0,0.011241]
[1766758226568,0.01124,88966.0,88961.0,0.01124088]
[1766758226821,0.01124,88966.0,88960.0,0.011241]
[1766758227211,0.01124,88966.0,88961.0,0.01124088]
[1766758227442,0.01124,88966.0,88962.0,0.01124075]
[1766758227850,0.01124,88966.0,88961.0,0.01124088]
[1766758228048,0.01124,88966.0,88963.0,0.01124062]
[1766758228460,0.01124,88966.0,88962.0,0.01124075]
[1766758228661,0.01124,88966.0,88963.0,0.01124062]
[1766758229409,0.01124,88966.0,88959.0,0.01124113]
[1766758229636,0.000548,88963.0,88960.0,0.06744569]
[1766758229836,0.01124,88966.0,88962.0,0.01124075]
[1766758230038,0.01124,88966.0,88963.0,0.01124062]
[1766758230913,0.01124,88966.0,88964.0,0.0562025]
[1766758231100,0.01124,88966.0,88963.0,0.01124062]
[1766758231667,0.000548,88963.0,88961.0,0.01124088]
[1766758231875,0.000548,88963.0,88962.0,0.01124075]
[1766758232079,0.01124,88966.0,88962.0,0.01124075]
[1766758232583,0.01124,88966.0,88960.0,0.011241]
[1766758232784,0.000548,88962.0,88961.0,0.01124088]
[1766758233187,0.01124,88966.0,88961.0,0.01124088]
[1766758234278,0.000548,88961.0,88957.0,0.05620634]
[1766758234922,0.02248024,88966.0,88958.0,0.01124125]
[1766758235354,0.02248024,88966.0,88956.0,0.43401183]
[1766758235559,0.01124088,88961.0,88951.0,0.01124]
[1766758235730,0.01124125,88958.0,88951.0,0.01124]
[1766758236328,0.01124113,88959.0,88951.0,0.02248214]
[1766758236716,0.011241,88960.0,88952.0,0.01124201]
[1766758236921,0.06744591,88961.0,88953.0,0.01124189]
[1766758237538,0.011241,88960.0,88952.0,0.01124201]
[1766758237692,0.01124113,88959.0,88951.0,0.02248214]
[1766758238524,0.011241,88960.0,88952.0,0.01124201]
[1766758239005,0.06744591,88961.0,88953.0,0.01124189]
[1766758239154,0.011241,88960.0,88952.0,0.01124201]
[1766758239767,0.011241,88960.0,88951.0,0.02248214]
[1766758239970,0.01124113,88959.0,88951.0,0.01124]
[1766758240606,0.01124113,88959.0,88951.0,0.02248214]
[1766758240959,0.01124176,88954.0,88951.0,0.01124]
[1766758241601,0.01124176,88954.0,88945.0,0.0112429]
[1766758241775,0.00055,88951.0,88946.0,0.02248277]
[1766758242020,0.01124151,88956.0,88948.0,0.01124252]
[1766758242219,0.01124113,88959.0,88951.0,0.01124214]
[1766758242421,0.0674428,88965.0,88956.0,0.01124151]
[1766758242595,0.01124062,88963.0,88955.0,0.44525346]
[1766758242795,0.01124062,88963.0,88955.0,0.43401183]
[1766758243388,0.01124062,88963.0,88955.0,0.44525346]
[1766758243520,0.01124075,88962.0,88955.0,0.43401183]
[1766758243725,0.01124062,88963.0,88955.0,0.01124163]
[1766758246098,0.01124075,88962.0,88954.0,0.01124176]
[1766758246256,0.01124088,88961.0,88953.0,0.01124189]
[1766758246683,0.06744659,88960.0,88952.0,0.43401183]
[1766758246865,0.01124113,88959.0,88952.0,0.43401183]
[1766758247069,0.01124125,88958.0,88951.0,0.01124214]
[1766758247271,0.01124113,88959.0,88951.0,0.01124214]
[1766758247473,0.01124113,88959.0,88950.0,0.01124227]
[1766758247474,0.01124125,88958.0,88950.0,0.01124227]
[1766758247975,0.01124113,88959.0,88951.0,0.01124214]
[1766758248422,0.01124125,88958.0,88950.0,0.01124227]
[1766758248927,0.01124113,88959.0,88951.0,0.01124214]
[1766758249773,0.011241,88960.0,88951.0,0.01124214]
[1766758250542,0.06744572,88961.0,88952.0,0.01124201]
[1766758250743,0.011241,88960.0,88952.0,0.01124201]
[1766758251141,0.01124062,88963.0,88954.0,0.01124176]
[1766758251349,0.01124088,88961.0,88953.0,0.01124189]
[1766758251678,0.01124062,88963.0,88954.0,0.01124176]
[1766758252216,0.01124075,88962.0,88954.0,0.01124176]
[1766758253233,0.01124088,88961.0,88951.0,0.01124214]
[1766758253434,0.011241,88960.0,88952.0,0.01124201]
[1766758255055,0.01124113,88959.0,88952.0,0.01124201]
[1766758255260,0.011241,88960.0,88952.0,0.01124201]
[1766758258008,0.01124113,88959.0,88951.0,0.01124214]
[1766758258319,0.011241,88960.0,88952.0,0.01124201]
[1766758258693,0.011241,88960.0,88953.0,0.01124189]
[1766758259210,0.011241,88960.0,88952.0,0.01124201]
[1766758259704,0.06744396,88963.0,88952.0,0.01124201]
[1766758259910,0.01124088,88961.0,88954.0,0.01124176]
[1766758260213,0.01124075,88962.0,88954.0,0.01124176]
[1766758260413,0.01124088,88961.0,88953.0,0.01124189]
[1766758260554,0.011241,88960.0,88952.0,0.06745177]
[1766758260785,0.011241,88960.0,88952.0,0.01124201]
[1766758261236,0.01124113,88959.0,88951.0,0.01124214]
[1766758261940,0.01124113,88959.0,88950.0,0.01124227]
[1766758261941,0.01124113,88959.0,88952.0,0.01124201]
[1766758262123,0.01124113,88959.0,88951.0,0.01124214]
[1766758262488,0.01124125,88958.0,88949.0,0.45649422]
[1766758262630,0.01124125,88958.0,88947.0,0.0562128]
[1766758262631,0.00055,88951.0,88948.0,0.43401183]
[1766758262836,0.01124151,88956.0,88947.0,0.0674559]
[1766758263033,0.01124151,88956.0,88948.0,0.01124252]
[1766758263235,0.01348693,88957.0,88949.0,0.06745413]
[1766758263558,0.01348693,88957.0,88950.0,0.01124227]
[1766758264204,0.02472831,88957.0,88949.0,0.01124239]
[1766758265012,0.02472831,88957.0,88950.0,0.01124227]
[1766758265214,0.01348693,88957.0,88950.0,0.01124227]
[1766758265454,0.02472831,88957.0,88949.0,0.01124239]
[1766758266547,0.01348693,88957.0,88950.0,0.01124227]
[1766758266743,0.01348693,88957.0,88949.0,0.01124239]
[1766758266744,0.02472831,88957.0,88949.0,0.01124239]
[1766758267169,0.01348693,88957.0,88950.0,0.01124227]
[1766758268751,0.02472831,88957.0,88949.0,0.01124239]
[1766758269568,0.01348693,88957.0,88950.0,0.01124227]
[1766758269777,0.02472831,88957.0,88949.0,0.01124239]
[1766758270582,0.02472831,88957.0,88948.0,0.06745472]
[1766758271687,0.01348693,88957.0,88948.0,0.06745472]
[1766758272399,0.01348693,88957.0,88950.0,0.01124227]
[1766758273613,0.02472831,88957.0,88950.0,0.01124227]
[1766758273821,0.01348693,88957.0,88950.0,0.01124227]
[1766758274168,0.02472831,88957.0,88949.0,0.01124239]
[1766758274567,0.01124151,88956.0,88948.0,0.01124252]
[1766758276087,0.01124176,88954.0,88946.0,0.01124277]
[1766758276287,0.01124189,88953.0,88945.0,0.0224829]
[1766758276584,0.01124189,88953.0,88946.0,0.01124277]
[1766758276899,0.01124163,88955.0,88947.0,0.01124265]
[1766758277111,0.01124176,88954.0,88946.0,0.01124277]
[1766758277304,0.01124176,88954.0,88945.0,0.0224829]
[1766758277683,0.01124176,88954.0,88946.0,0.01124277]
[1766758277884,0.01124176,88954.0,88943.0,0.01124315]
[1766758277885,0.00055,88946.0,88943.0,0.01124]
[1766758278620,0.01124201,88952.0,88944.0,0.01124302]